[Event "13th London Chess Classic 2023"]
[Site "London"]
[Date "2023.12.08"]
[Round "7.5"]
[White "Niemann, Hans Moke"]
[Black "Bartel, Mateusz"]
[Result "0-1"]
[ECO "C55"]
[WhiteElo "2659"]
[BlackElo "2651"]
[Annotator "TA"]
[PlyCount "149"]
[EventDate "2023.11.27"]
[EventType "tourn"]
[EventCountry "ENG"]
[SourceTitle "playchess.com"]
[Source "ChessBase"]
[SourceQuality "1"]
[TimeControl "40/5400+30:1800+30"]

{[%evp 14,149,36,25,54,23,27,25,51,30,55,53,58,50,59,45,50,60,48,48,59,51,45,38,68,48,59,84,99,52,71,69,83,24,56,19,36,21,56,77,87,58,74,73,72,67,93,83,193,180,204,189,327,330,260,283,513,458,559,697,1111,1087,1035,1045,1270,1266,1240,1135,1214,1176,1144,833,797,769,2012,-184,-184,-184,-184,-184,-184,-184,-184,-184,-184,-184,-184,-184,-184,-184,-149,-360,-353,-1111,-1111,-1111,-1111,-1111,0,-1111,-1085,-962,-428,-5127,-1085,-956,-891,-4238,-566,-12839,-12839,-12836,-12835,-12824,-12834,-12735,-12423,-12080,-11842,-1710,-992,-966,-580,-29955,-29957,-6273,-5214,-29970,-29972,-29970,-29973,-29972,-29974,-29974,-29975,-29972,-6973,-1511]} 1. e4 {[%emt 0:00:06]} e5 {[%emt 0:00:07]} 2. Nf3 {[%emt 0:00:09]} Nc6 {[%emt 0:00:06]} 3. Bc4 {[%emt 0:00:54]} Nf6 {[%emt 0:00:07]} 4. d3 {[%emt 0:00:06]} h6 {[%emt 0:00:04]} 5. c3 {[%emt 0:00:49]} d6 {[%emt 0:00:07]} 6. a4 {[%emt 0:00:14]} g6 {[%emt 0:00:21]} 7. a5 {[%emt 0:03:07]} a6 {[%emt 0:00:14]} 8. O-O {[%emt 0:02:52]} Bg7 {[%emt 0:00:33]} 9. Nbd2 {[%emt 0:00:52]} O-O {[%emt 0:08:05]} 10. Re1 {[%emt 0:00:33]} Nh7 {[%emt 0:05:09]} 11. Qb3 {[%emt 0:05:50]} Kh8 {[%emt 0:03:47]} 12. Bxf7 {[%emt 0:03:46]} Qf6 {[%emt 0:01:09]} 13. Bc4 {[%emt 0:02:19]} g5 {[%emt 0:00:30]} 14. Re2 {[%emt 0:03:20]} g4 {[%emt 0:10:52]} 15. Ne1 {[%emt 0:00:14]} h5 {[%emt 0:00:05]} 16. Nf1 {[%emt 0:01:15]} h4 {[%emt 0:00:05]} 17. Qd1 {[%emt 0:13:44]} Ne7 {[%emt 0:03:44]} 18. Qd2 {[%emt 0:02:04]} c6 {[%emt 0:06:29]} 19. g3 {[%emt 0:03:21]} d5 {[%emt 0:00:20]} 20. Bb3 {[%emt 0:01:07]} Be6 {[%emt 0:00:06]} 21. Ng2 {[%emt 0:02:24]} ({White should play} 21. Ra4 $16) 21... Ng6 {[%emt 0:01:51]} 22. exd5 {[%emt 0:01:31]} cxd5 {[%emt 0:01:37] [#]} 23. d4 {[%emt 0:00:18]} (23. Nxh4 $1 $16 Nxh4 24. gxh4) 23... e4 {[%emt 0:03:16]} 24. Ra4 {[%emt 0:02:22]} h3 $1 {[%emt 0:06:44]} 25. Ne1 {[%emt 0:00:10]} Qf7 {[%emt 0:00:34]} 26. Rb4 {[%emt 0:08:14]} Rac8 {[%emt 0:01:06]} 27. Bc2 {[%emt 0:03:15]} Bf6 {[%emt 0:05:39]} 28. Qd1 {[%emt 0:03:43]} (28. Qh6 Bg7 29. Qe3 Bf6 $11) 28... Bd8 {[%emt 0:02:32]} 29. Bh6 {[%emt 0:00:57]} Rg8 {[%emt 0:02:25]} 30. c4 $1 {[%emt 0:02:29]} Bg5 {[%emt 0:06:45]} (30... Bxa5 $16 31. Ra4 Bc7) 31. Bxg5 $18 {[%emt 0:00:35]} Nxg5 {[%emt 0:00:07]} 32. Ne3 {[%emt 0:03:10]} Nh4 {[%emt 0:09:31]} (32... Rc7 {was worth a try.} 33. cxd5 Bxd5) 33. gxh4 $18 {[%emt 0:10:02]} Nf3+ {[%emt 0:00:06]} 34. Kh1 {[%emt 0:00:06]} Nxh2 $2 {[%emt 0:00:49]} (34... Rc7 {was necessary.} 35. Nxf3 gxf3) 35. cxd5 $18 {[%emt 0:03:29]} g3 {[%emt 0:02:14]} 36. dxe6 {[%emt 0:05:18]} g2+ {[%emt 0:06:20]} 37. N3xg2 $1 {[%emt 0:00:38]} (37. Kxh2 $2 g1=Q+ 38. Kxh3 Qh1#) 37... hxg2+ {[%emt 0:00:09] [#]} 38. Kg1 $1 {[%emt 0:00:27]} (38. Nxg2 $2 Qf3 39. Bxe4 Qh3 $19) 38... Qf4 {[%emt 0:00:19]} 39. Rxe4 {[%emt 0:03:51]} (39. Nxg2 Rxg2+ 40. Kxg2 Rg8+ 41. Kh3 Qg4+ 42. Kxh2 Qxh4#) 39... Qxf2+ {[%emt 0:00:34]} 40. Kxf2 {[%emt 0:00:00]} g1=Q+ {[%emt 0:00:00]} 41. Ke2 {[%emt 0:00:04]} Nf1 {[%emt 0:03:17]} 42. Qc1 {[%emt 0:06:04]} (42. Rxb7 $2 Qh2+ 43. Kf3 (43. Kxf1 $2 Rg1#) 43... Rg3+ 44. Kf4 Rd3+ 45. Kg5 Rxd1 46. Bxd1 Qd2+ 47. Kg6 Rg8+ 48. Kf6 Qxd1 $19) (42. Nf3 Qg2+ 43. Kd3 Rgf8 $17) 42... Rg2+ {[%emt 0:01:27]} 43. Kd1 $1 {[%emt 0:02:12]} (43. Nxg2 Ng3+ 44. Kf3 Qxc1 45. Kxg3 Qxc2 $11) 43... Rcxc2 {[%emt 0:01:26]} 44. Qxc2 $4 {[%emt 0:02:39][%mdl 8192]} (44. Qh6+ $18 {is the narrow road to win.} Kg8 45. e7 (45. Nxc2 $2 Ne3#) (45. Rg4+ Rxg4 46. Kxc2 Qf2+ 47. Kb3 Nd2+ 48. Kc3 Ne4+ 49. Kc4 Qxe1 $19) 45... Rgd2+ 46. Qxd2 Rxd2+ 47. Kc1 Rd1+ {[%mdl 64] Decoy} 48. Kxd1 Ne3+ 49. Kd2 Qf2+ 50. Kc3 Nd5+ 51. Kc4) 44... Rxc2 $19 {[%emt 0:01:19]} 45. Nxc2 {[%emt 0:08:07]} (45. Kxc2 Qh2+ 46. Kd3 Qd2+ 47. Kc4 Qc1+ 48. Kd5 (48. Kd3 $2 Qb1+ {[%mdl 64] Skewer} 49. Nc2 Qd1+ 50. Kc3 Qd2+ {[%mdl 64] Deflection} 51. Kc4 Qxc2+ 52. Kd5 Qc6+ 53. Ke5 Qc7+ 54. Kf6 Ng3 $19) 48... Qc6+ 49. Ke5 Qc7+ 50. Kf6 Ng3 $19) 45... Ne3+ {[%emt 0:03:44]} 46. Kd2 {[%emt 0:00:06]} Qf2+ {[%emt 0:00:38]} 47. Kd3 {[%emt 0:00:17]} Nxc2 {[%emt 0:00:20]} 48. d5 {[%emt 0:04:17]} Nxb4+ {[%emt 0:01:56]} 49. Rxb4 {[%emt 0:00:02]} Qc5 {[%emt 0:02:51]} 50. Rd4 {[%emt 0:00:05] [#]} Qd6 $1 {[%emt 0:00:06]} ({Inferior is} 50... Qxa5 51. e7 Qb5+ 52. Ke3 $11) 51. Ke4 {[%emt 0:00:12]} Kg7 {[%emt 0:00:15]} 52. Rd3 $2 {[%emt 0:00:33]} (52. h5 $17 {was called for.}) 52... Qh2 $19 {[%emt 0:08:02]} 53. Rc3 $2 {[%emt 0:01:46]} (53. d6 Qe2+ 54. Re3 Qc4+ 55. Kf3 Qd5+ 56. Ke2) 53... Qxh4+ $19 {[%emt 0:02:06]} 54. Kf5 {[%emt 0:03:19]} Qh5+ {[%emt 0:00:14]} 55. Ke4 {[%emt 0:00:06]} Qh4+ {[%emt 0:10:40]} 56. Kf5 $1 {[%emt 0:00:25]} Qh2 {[%emt 0:01:31]} 57. Ke4 {[%emt 0:01:08]} Kg6 {[%emt 0:01:16]} (57... Qg2+ $142 58. Rf3 Qxb2) 58. Rc8 {[%emt 0:01:51]} (58. Re3 $142) 58... Qd6 {[%emt 0:01:24]} (58... Qe2+ $142 59. Kd4 Qxb2+ 60. Ke4 Qe2+ 61. Kd4 Qf2+ 62. Kd3 Qf5+ 63. Kd4 Qf4+ 64. Kd3 Qd6) 59. Rc2 $19 {[%emt 0:00:20]} Qg3 {[%emt 0:00:33]} 60. Rc8 {[%emt 0:00:24]} Kg7 {[%emt 0:01:50]} ({Avoid the trap} 60... Kf6 $2 61. Rf8+ Ke7 62. Rf7+ Kd6 63. Rd7+ Kc5 64. Kf5 $19) (60... Qe1+ $142 61. Kd4 Qd2+ 62. Ke5 Qh2+ 63. Ke4 Qe2+ 64. Kd4 Qxb2+ 65. Ke4 Qg2+ 66. Ke5 Qg3+ 67. Ke4 Qd6) 61. Kd4 {[%emt 0:12:33]} Qf4+ {[%emt 0:00:29]} 62. Kd3 {[%emt 0:00:03]} Qd6 {[%emt 0:01:07]} 63. Kc4 {[%emt 0:00:32]} Kf6 {[%emt 0:00:07]} 64. Rh8 {[%emt 0:00:35]} Qc7+ {[%emt 0:01:33]} 65. Kd4 {[%emt 0:00:08]} Qg7 {[%emt 0:00:13]} 66. Rh1 {[%emt 0:02:17]} Ke7+ {[%emt 0:03:36]} 67. Kc5 {[%emt 0:00:05]} Qg6 {[%emt 0:00:04]} 68. Rc1 {[%emt 0:03:43]} Qd3 {[%emt 0:00:13]} 69. Rc4 {[%emt 0:00:21]} Qe3+ {[%emt 0:00:14]} 70. Rd4 {[%emt 0:00:19]} Qc1+ {[%emt 0:00:21]} 71. Rc4 {[%emt 0:00:49]} Qxb2 {[%emt 0:00:26]} 72. Re4 {[%emt 0:00:27]} Qb5+ {[%emt 0:00:16]} 73. Kd4 {[%emt 0:00:03]} Qxa5 {[%emt 0:00:16]} 74. Ke5 {[%emt 0:00:31]} Qc7+ {[%emt 0:00:18]} (74... Qc3+ $142 75. Kf4 Qc7+ 76. Kf5 Qg3 77. Rd4 Kd6 78. Ke4 Qe1+ 79. Kf3 Qe5 80. Re4 Qf5+ 81. Rf4 Qxd5+ 82. Re4 Qxe6 83. Re2 Qxe2+ 84. Kxe2 b5 85. Kd3 a5 86. Ke3 Kc5 87. Ke4 a4 88. Kd3 b4 89. Kd2 a3 90. Kc2 Kc4 91. Kc1 b3 92. Kd2 a2 93. Ke2 a1=Q 94. Kf2 b2 95. Kf3 b1=Q 96. Kg3 Qd3+ 97. Kh4 Qf6+ 98. Kh5 Qh3#) 75. Kf5 {[%emt 0:00:03]} 0-1

[Event "13th London Chess Classic 2023"]
[Site "London"]
[Date "2023.12.09"]
[Round "8.1"]
[White "Volokitin, Andrei"]
[Black "Bartel, Mateusz"]
[Result "1-0"]
[ECO "C18"]
[WhiteElo "2660"]
[BlackElo "2651"]
[Annotator "TA"]
[PlyCount "153"]
[EventDate "2023.11.27"]
[EventType "tourn"]
[EventCountry "ENG"]
[SourceTitle "playchess.com"]
[Source "ChessBase"]
[SourceQuality "1"]
[TimeControl "40/5400+30:1800+30"]

{[%evp 20,153,25,31,43,22,37,0,0,29,60,51,52,46,48,0,0,-125,33,31,41,34,36,47,38,28,29,12,24,48,111,87,135,128,149,154,127,104,159,108,108,114,109,79,89,83,81,83,98,98,99,100,125,112,162,159,156,160,160,138,140,152,150,143,145,146,141,130,147,64,118,61,135,135,135,135,135,135,135,135,135,135,135,135,135,134,134,107,134,134,134,131,141,139,133,133,127,118,165,164,168,186,185,160,272,271,430,421,485,480,422,425,418,413,462,414,585,365,522,398,547,528,967,945,922,905,830,783,1383,1336,1251,1186,1200,1182,2743,5089]} 1. e4 {[%emt 0:00:03]} e6 {[%emt 0:00:05]} 2. d4 {[%emt 0:00:06]} d5 {[%emt 0:00:04]} 3. Nc3 {[%emt 0:00:04]} Bb4 {[%emt 0:00:05]} 4. e5 {[%emt 0:00:09]} c5 {[%emt 0:00:06][%cal Bc7c5,Bc5d4][%mdl 32]} 5. a3 {[%emt 0:00:06]} Bxc3+ {[%emt 0:00:04]} 6. bxc3 {[%emt 0:00:03]} Ne7 {[%emt 0:00:06]} 7. Qg4 {[%emt 0:00:15]} cxd4 {[%emt 0:00:07]} 8. Qxg7 {[%emt 0:00:08]} Rg8 {[%emt 0:00:04]} 9. Qxh7 {[%emt 0:00:05]} Qc7 {[%emt 0:00:08]} 10. Ne2 {[%emt 0:00:12]} Nbc6 {[%emt 0:00:17]} 11. f4 {[%emt 0:00:07]} (11. cxd4 Nxd4 12. Ra2 Nxe2 13. Bxe2 Qxe5 $11) 11... dxc3 {[%emt 0:00:13] C18: French: 3 Nc3 Bb4: Main line: 7 h4 and 7 Qg4.} 12. Nxc3 {[%emt 0:00:31] Strongly threatening Nb5.} Nd4 {[%emt 0:03:47]} 13. Bb2 {[%emt 0:00:58]} (13. Qd3 $5 {[%cal Rd3d4]} Nef5 14. Bb2 $11) 13... Bd7 {[%emt 0:03:57] The position is equal.} 14. O-O-O {[%emt 0:00:37]} Qc5 {[%emt 0:04:26]} 15. Qd3 {[%emt 0:49:46]} Ndf5 {[%emt 0:04:07]} 16. Nb5 {[%emt 0:15:46] [#]} Rc8 $146 {[%emt 0:03:39]} ({Predecessor:} 16... O-O-O 17. Nd4 Kb8 18. Qc3 Qb6 19. Qb3 Qa5 20. g3 Rc8 21. Qb4 Qd8 22. Ba6 Rc7 23. Nxf5 Nxf5 {½-½ Thomas,G (1633)-Brayman,N (1699) SC-2013-0-00174}) 17. Qb3 {[%emt 0:01:38]} (17. g3 $14 {feels stronger.}) 17... Nc6 $11 {[%emt 0:11:45] A dynamic duo of knights.} 18. g3 {[%emt 0:06:30]} (18. Qc3 $11 {keeps the balance.} Qb6 19. g3 (19. Nd6+ Nxd6 20. exd6 Na5 $11)) 18... Na5 $2 {[%emt 0:29:15]} (18... a6 $1 $17 {[%cal Ra6b5]} 19. Nc3 (19. Nd6+ $2 Nxd6 20. exd6 Na5 $19) 19... b5) 19. Qc3 $1 $36 {[%emt 0:00:56][%mdl 2048] White has some pressure.} Qb6 {[%emt 0:00:27]} 20. Qb4 {[%emt 0:00:44] And now Bd4 would win.} (20. Qd3 $2 Nc4 21. Nd6+ Nfxd6 $17) 20... Qe3+ {[%emt 0:01:23]} ({Don't take} 20... Qf2 21. Bd3 Qe3+ 22. Kb1 $16) 21. Kb1 {[%emt 0:00:37] The board is on fire.} Nc4 {[%emt 0:00:04]} 22. Bxc4 {[%emt 0:07:13][%mdl 64] Remove Defender} Rxc4 {[%emt 0:00:16]} 23. Nd6+ {[%emt 0:00:56]} Nxd6 {[%emt 0:00:08]} 24. Qxd6 {[%emt 0:00:03][%cal Od1d4]} Rc6 {[%emt 0:08:00]} (24... Ba4 $14) 25. Qb8+ $16 {[%emt 0:00:37]} Rc8 {[%emt 0:02:51]} (25... Bc8 $142) 26. Qxb7 {[%emt 0:02:21]} Qe4 {[%emt 0:00:11]} 27. Ka1 {[%emt 0:01:32]} Ke7 {[%emt 0:01:04]} 28. Rhe1 {[%emt 0:04:33]} Qc4 {[%emt 0:01:57]} (28... Qxc2 $142 29. Qxa7 (29. Rc1 Qa4 $16) 29... Qc5 30. Qxc5+ Rxc5) 29. f5 {[%emt 0:03:40]} (29. Qxa7 $142 Qc5 30. Qxc5+ Rxc5 31. Re2) 29... exf5 {[%emt 0:01:10] Black is weak on the dark squares} 30. Rxd5 {[%emt 0:04:34]} Rc7 {[%emt 0:00:33]} 31. Qb3 {[%emt 0:00:31]} Be6 {[%emt 0:10:09]} 32. Qxc4 {[%emt 0:00:16]} Rxc4 {[%emt 0:00:06]} 33. Ra5 {[%emt 0:00:12]} Ra8 {[%emt 0:00:05]} 34. Re2 {[%emt 0:00:34]} a6 {[%emt 0:03:16]} 35. Bc1 {[%emt 0:00:13]} Kd7 {[%emt 0:07:12]} 36. Be3 {[%emt 0:00:09]} Kc6 {[%emt 0:00:15]} (36... Re4 $16 37. Rd2+ Ke8) 37. Rd2 $18 {[%emt 0:00:15]} Rc3 {[%emt 0:01:49]} 38. Bd4 {[%emt 0:00:18]} Rf3 {[%emt 0:01:03]} 39. Rd1 {[%emt 0:01:37]} Kd7 {[%emt 0:03:15]} 40. Be3+ {[%emt 0:00:00]} Ke8 {[%emt 0:00:00]} 41. Bg5 {[%emt 0:03:49]} Kf8 {[%emt 0:00:17]} 42. Bf6 {[%emt 0:04:47]} Kg8 {[%emt 0:00:07]} 43. Kb2 {[%emt 0:10:05]} Rf2 {[%emt 0:06:10]} 44. h4 {[%emt 0:01:31]} (44. Rd8+ $1 $16 Rxd8 45. Bxd8) 44... Kh7 {[%emt 0:00:48]} (44... Rb8+ $1 $14 45. Kc1 Rg2) 45. Rc5 {[%emt 0:02:11]} (45. Rd8 $1 $16 {[%cal Rd8a8]} Rxd8 46. Bxd8) 45... Kg6 {[%emt 0:03:40]} (45... Rb8+ $14 46. Kc3 f4) 46. Rd8 $16 {[%emt 0:01:59]} Rxd8 {[%emt 0:00:49]} 47. Bxd8 {[%emt 0:00:02][%mdl 4096] Endgame KRB-KRB} Rg2 {[%emt 0:00:27] [#]} 48. Rc3 {[%emt 0:00:24]} Re2 {[%emt 0:00:07]} 49. Bg5 {[%emt 0:08:55]} Rxe5 {[%emt 0:00:06]} 50. Bf4 {[%emt 0:00:24]} Rb5+ {[%emt 0:02:32]} 51. Kc1 {[%emt 0:00:01]} Kh5 {[%emt 0:02:20]} 52. Re3 {[%emt 0:00:32]} Rc5 {[%emt 0:00:29]} 53. Kd2 {[%emt 0:01:07]} Rc4 {[%emt 0:01:41]} 54. Rd3 {[%emt 0:00:32]} Ra4 {[%emt 0:01:49]} 55. Bd6 {[%emt 0:00:40]} Rc4 {[%emt 0:02:14]} 56. c3 {[%emt 0:00:43]} Rc8 {[%emt 0:01:18]} 57. Rd4 {[%emt 0:00:11]} Bc4 {[%emt 0:01:49]} 58. Bf4 {[%emt 0:00:08]} Bf1 {[%emt 0:00:59]} (58... Rc5 $16 59. Bd6 Rc6) 59. Rd7 $18 {[%emt 0:01:06]} Bc4 {[%emt 0:00:29] [#]} 60. Rc7 $1 {[%emt 0:00:59]} Rd8+ {[%emt 0:01:09]} 61. Kc2 {[%emt 0:00:23]} Bd5 {[%emt 0:02:02]} (61... Bd3+ $16 62. Kc1 f6) 62. c4 {[%emt 0:00:14]} Be6 {[%emt 0:00:46]} (62... Bf3 $142 63. Rxf7 Kg6) 63. Kc3 {[%emt 0:00:37]} Kg4 {[%emt 0:00:41]} 64. Rc6 {[%emt 0:00:27]} a5 {[%emt 0:00:06]} 65. Rc5 {[%emt 0:00:45]} Ra8 {[%emt 0:00:57]} 66. Rb5 {[%emt 0:00:05]} Rc8 {[%emt 0:00:46]} 67. c5 $1 {[%emt 0:00:07]} ({Less strong is} 67. Rxa5 Rxc4+ 68. Kd3 f6 $16) 67... a4 {[%emt 0:00:12]} (67... Bd5 {keeps fighting.} 68. Rxa5 Re8) 68. Bd6 {[%emt 0:00:51]} Ra8 {[%emt 0:01:11]} (68... f4 {is a better defense.} 69. Bxf4 (69. gxf4 Bd5 $18) 69... Bd7) 69. Rb8 {[%emt 0:00:17]} Ra7 {[%emt 0:00:16]} 70. Rg8+ {[%emt 0:00:20] White is clearly winning.} Kf3 {[%emt 0:00:12]} 71. h5 {[%emt 0:00:15]} f6 {[%emt 0:00:13]} 72. Re8 {[%emt 0:01:15]} Bf7 {[%emt 0:00:06]} 73. Rh8 {[%emt 0:00:18] aiming for c6.} Rb7 {[%emt 0:00:53]} 74. c6 {[%emt 0:00:18][%cal Bc5c6,Bc6c7][%mdl 32]} Rb3+ {[%emt 0:01:19]} 75. Kd4 {[%emt 0:00:04]} Ke2 {[%emt 0:00:03]} 76. c7 {[%emt 0:00:24]} Be6 {[%emt 0:00:56]} 77. Re8 {[%emt 0:00:29] Weighted Error Value: White=0.14 (very precise) /Black=0.17 (very precise)} 1-0

[Event "13th London Chess Classic 2023"]
[Site "London"]
[Date "2023.12.09"]
[Round "8.2"]
[White "Vitiugov, Nikita"]
[Black "Niemann, Hans Moke"]
[Result "1/2-1/2"]
[ECO "C67"]
[WhiteElo "2712"]
[BlackElo "2659"]
[Annotator "TA"]
[PlyCount "66"]
[EventDate "2023.11.27"]
[EventType "tourn"]
[EventCountry "ENG"]
[SourceTitle "playchess.com"]
[Source "ChessBase"]
[SourceQuality "1"]
[TimeControl "40/5400+30:1800+30"]

{[%evp 18,60,12,18,14,15,14,20,18,14,22,8,8,8,7,2,11,11,9,10,8,0,0,0,18,0,0,0,0,0,0,0,0,0,0,0,0,0,0,0,0,0,0,0,0]} 1. e4 {[%emt 0:00:04]} e5 {[%emt 0:00:07]} 2. Nf3 {[%emt 0:00:08]} Nc6 {[%emt 0:00:10]} 3. Bb5 {[%emt 0:00:18]} Nf6 {[%emt 0:00:10]} 4. O-O {[%emt 0:00:54][%cal Bh1f1,Bf1e1,Be1e5][%mdl 32]} Nxe4 {[%emt 0:00:23]} 5. Re1 {[%emt 0:00:38]} Nd6 {[%emt 0:00:11]} 6. Nxe5 {[%emt 0:00:06]} Be7 {[%emt 0:00:05]} 7. Bf1 {[%emt 0:00:08]} Nxe5 {[%emt 0:00:06]} 8. Rxe5 {[%emt 0:00:05]} O-O {[%emt 0:00:07]} 9. d4 {[%emt 0:00:09]} Bf6 {[%emt 0:00:07]} 10. Re1 {[%emt 0:00:05] The position is equal.} Re8 {[%emt 0:00:07] 10...Re8 is better than 10...Nf5. C67: Ruy Lopez: Berlin Defence: 4 0-0 Nxe4.} 11. Bf4 {[%emt 0:00:58]} Rxe1 {[%emt 0:00:07]} 12. Qxe1 {[%emt 0:00:03]} Ne8 {[%emt 0:00:07]} 13. c3 {[%emt 0:00:12]} d5 {[%emt 0:00:15]} 14. Bd3 {[%emt 0:00:49]} g6 {[%emt 0:00:24]} 15. Nd2 {[%emt 0:00:39][%cal Bb1d2,Bd2f3,Bf3e5][%mdl 32]} Ng7 {[%emt 0:00:29]} 16. Qe2 {[%emt 0:00:53]} c6 {[%emt 0:01:03]} 17. Re1 {[%emt 0:00:48]} Bf5 {[%emt 0:01:05]} 18. Bxf5 {[%emt 0:00:41]} Nxf5 {[%emt 0:00:09]} 19. Nf3 {[%emt 0:00:11]} Ng7 {[%emt 0:00:18]} 20. Be5 {[%emt 0:00:31]} Ne6 {[%emt 0:00:22]} 21. Bxf6 {[%emt 0:00:29]} Qxf6 {[%emt 0:00:09]} 22. Ne5 {[%emt 0:00:11]} Re8 {[%emt 0:00:38]} 23. Ng4 {[%emt 0:00:23]} Qd8 {[%emt 0:00:11]} 24. Qe5 {[%emt 0:00:33] Threatens to win with Nf6+.} Ng7 {[%emt 0:00:23]} 25. Qxe8+ {[%emt 0:00:10][%mdl 64] [#] Decoy} ({Don't go for} 25. Nh6+ $2 Kf8 26. Nxf7 Rxe5 $19) 25... Nxe8 {[%emt 0:00:04]} 26. Rxe8+ {[%emt 0:00:04][%mdl 64] Remove Defender} Qxe8 {[%emt 0:00:03][%cal Re8e1]} 27. Nf6+ {[%emt 0:00:05]} Kf8 {[%emt 0:00:05][%cal Re8e1]} 28. Nxe8 {[%emt 0:00:04]} Kxe8 {[%emt 0:00:05]} 29. f4 {[%emt 0:00:04]} f5 {[%emt 0:00:06]} 30. Kf2 {[%emt 0:00:05]} Kf7 {[%emt 0:00:05] [#] An uneventful encounter.   Weighted Error Value: White=0.03 (flawless) /Black=0.02 (flawless)} {Predecessor:} 31. b4 $146 b5 32. h4 h5 33. Kf3 Ke6 {½-½ Xu,X (2596)-Li,D (2556) CHN-ch Xinghua 2023 (1)} 1/2-1/2

[Event "13th London Chess Classic 2023"]
[Site "London"]
[Date "2023.12.09"]
[Round "8.3"]
[White "Gukesh D"]
[Black "Tabatabaei, M. Amin"]
[Result "1/2-1/2"]
[ECO "C54"]
[WhiteElo "2746"]
[BlackElo "2694"]
[Annotator "TA"]
[PlyCount "73"]
[EventDate "2023.11.27"]
[EventType "tourn"]
[EventCountry "ENG"]
[SourceTitle "playchess.com"]
[Source "ChessBase"]
[SourceQuality "1"]
[TimeControl "40/5400+30:1800+30"]

{[%evp 20,73,0,-12,0,0,12,15,8,13,13,0,8,0,0,10,34,47,36,35,32,29,35,33,33,6,38,0,43,27,38,37,42,32,35,0,0,0,0,0,0,0,0,0,0,0,9,0,0,0,0,0,0,0,0,0]} 1. e4 {[%emt 0:00:07]} e5 {[%emt 0:00:49]} 2. Nf3 {[%emt 0:00:10]} Nc6 {[%emt 0:00:06]} 3. Bc4 {[%emt 0:00:06]} Nf6 {[%emt 0:00:06]} 4. d3 {[%emt 0:00:08]} Bc5 {[%emt 0:00:06]} 5. c3 {[%emt 0:00:13]} d6 {[%emt 0:00:10]} 6. b4 {[%emt 0:00:58]} Bb6 {[%emt 0:00:09]} 7. a4 {[%emt 0:00:09]} a5 {[%emt 0:00:43]} 8. b5 {[%emt 0:00:08]} Ne7 {[%emt 0:00:10]} 9. Nbd2 {[%emt 0:00:10]} O-O {[%emt 0:00:20]} 10. O-O {[%emt 0:00:09]} Ng6 {[%emt 0:01:26]} 11. Bb3 {[%emt 0:00:07]} h6 {[%emt 0:06:37] C54: Giuoco Piano: 4 c3 Nf6, main lines with 5 d4 and 5 d3.} 12. Nc4 {[%emt 0:00:13][%cal Bd2c4,Bc4e5,Be5g6,Bg6f4,Bf4d3][%mdl 32]} Bc5 {[%emt 0:02:22]} 13. d4 {[%emt 0:00:10]} exd4 {[%emt 0:00:35]} 14. cxd4 {[%emt 0:00:05]} Bb4 {[%emt 0:00:06]} 15. e5 {[%emt 0:00:45]} dxe5 {[%emt 0:07:46]} 16. Nfxe5 {[%emt 0:00:28]} Nxe5 {[%emt 0:03:30]} 17. Nxe5 {[%emt 0:00:06] [#]} Be6 $146 {[%emt 0:05:51]} ({Predecessor:} 17... Qd6 18. Bf4 Be6 19. Ng6 Bxb3 20. Qxb3 Qxd4 21. Rad1 Qe4 22. Nxf8 Qxf4 23. Nd7 Nxd7 24. Rxd7 Bd6 25. Qg3 {½-½ Wittal,W-Schmidt,J Theme 22694 freechess.de 2020}) 18. Bxe6 {[%emt 0:00:22]} fxe6 {[%emt 0:00:05]} 19. Qd3 {[%emt 0:15:51][%cal Oc1h6] Dodges Bc3} Nd7 {[%emt 0:03:36] [#] ...Nxe5 is the strong threat.} 20. Ng6 {[%emt 0:08:52] Prevents Nxe5.} Rf6 {[%emt 0:07:25]} 21. Be3 {[%emt 0:21:52]} Rc8 {[%emt 0:16:51]} 22. Qe4 {[%emt 0:09:15]} (22. Rfc1 $5) 22... c6 {[%emt 0:01:41]} 23. Nf4 {[%emt 0:05:10]} Qe8 {[%emt 0:00:51]} 24. bxc6 {[%emt 0:00:12]} bxc6 {[%emt 0:00:28][%cal Bb7c6,Bc6c5,Bc5c4,Bc4c3][%mdl 32]} 25. Nd3 {[%emt 0:04:43] Nxb4 would be deadly.} c5 {[%emt 0:04:48]} 26. Rab1 {[%emt 0:04:44]} Rf5 {[%emt 0:03:11]} 27. Rfc1 {[%emt 0:09:52]} Nf6 {[%emt 0:05:15][%csl LRa4,LRe4] The position is equal.} 28. Qb7 {[%emt 0:00:06][%cal Rd4c5]} c4 {[%emt 0:05:56] [#] And now ...Rb8 would win.} 29. Nxb4 {[%emt 0:01:18]} axb4 {[%emt 0:00:21]} 30. Qxb4 {[%emt 0:04:52]} Nd5 {[%emt 0:00:38]} 31. Qe1 {[%emt 0:01:01]} c3 {[%emt 0:01:58]} 32. a5 {[%emt 0:00:06]} Qc6 {[%emt 0:02:40]} 33. Qe2 {[%emt 0:01:37]} Ra8 {[%emt 0:05:01]} 34. Ra1 {[%emt 0:00:36]} Nxe3 {[%emt 0:05:48]} 35. Qxe3 {[%emt 0:00:06]} Rfxa5 {[%emt 0:00:04]} 36. Rxa5 {[%emt 0:00:04]} (36. Qxc3 $2 {too greedy.} Qxc3 37. Rab1 Qxd4 $19) 36... Rxa5 {[%emt 0:00:04]} 37. h3 {[%emt 0:00:15] Weighted Error Value: White=0.08 (flawless) /Black=0.06 (flawless)} ({Wrong is} 37. d5 $2 exd5 38. f3 c2 $19) 1/2-1/2